Cogmind - Beta 13 @@@ ROGUE MODE // 2024.04.24 @ 15:08:04 Player: Exceptionally Mediocre Result: Destroyed by 6E-72M(R) with Subdweller Beam Cannon Performance ------------- Evolutions (0) 0 Regions Visited (3) 600 Robots Destroyed (42) 210 Value Destroyed (804) 804 Prototype IDs (0) 0 Alien Tech Used (0) 0 Bonus (120) 120 TOTAL SCORE: 1734 Bonus ------- Follower Combat Kills 120 Cogmind --------- Core Integrity 0/250 Matter 226/300 Energy 160/160 System Corruption 5% Temperature Cool (9) Movement Treading (160) Location -10/Subcaves Parts ------- > --- POWER (1) -------- Light Nuclear Core > --- PROPULSION (2) --- Light Treads Light Treads > --- UTILITY (2) ------ Large Storage Unit Structural Scanner > --- WEAPON (2) ------- Battle Rifle Rocket Launcher > --- INVENTORY (15) --- Light Ion Engine Light Nuclear Core Light Treads Light Treads Light Treads High-capacity Battery (250) Utility Shielding Makeshift Light Armor Plating Hacking Suite Riot Gun Improved Light Cannon Improved Light Cannon Rocket Launcher Maul Makeshift Sword Peak State ------------ > --- POWER ------------ Light Nuclear Core > --- PROPULSION ------- Light Treads Light Treads > --- UTILITY ---------- Large Storage Unit Structural Scanner > --- WEAPON ----------- Riot Gun Battle Rifle > --- INVENTORY -------- Light Ion Engine Light Nuclear Core Light Treads Light Treads Light Treads High-capacity Battery Utility Shielding Makeshift Light Armor Plating Hacking Suite Improved Light Cannon Improved Light Cannon Rocket Launcher Rocket Launcher Maul Makeshift Sword [Rating: 15] Favorites ----------- Power Light Ion Engine Engine Light Ion Engine Power Core Light Nuclear Core Propulsion Light Treads Treads Light Treads Utility Large Storage Unit Device Structural Scanner Storage Large Storage Unit Protection Utility Shielding Weapon Assault Rifle Energy Gun Medium Laser Ballistic Gun Assault Rifle Ballistic Cannon Improved Light Cannon Launcher Rocket Launcher Impact Weapon Maul Slashing Weapon Makeshift Sword Build | -11 -10 -10 -10 ------- Run | Yrd Mat Min Sub Slots Evolved . | . . . . Power . | . . . . Propulsion . | . . . . Utility . | . . . . Weapon . | . . . . Parts Attached 42 | 9 15 2 16 Power 6 | 2 2 . 2 Engine 5 | 2 2 . 1 Core 1 | . . . 1 Reactor . | . . . . Propulsion 6 | 2 2 . 2 Treads 6 | 2 2 . 2 Leg . | . . . . Wheel . | . . . . Hover . | . . . . Flight . | . . . . Utility 7 | 2 5 . . Device 3 | 1 2 . . Storage 3 | 1 2 . . Processor . | . . . . Hackware . | . . . . Protection 1 | . 1 . . Artifact . | . . . . Weapon 23 | 3 6 2 12 Energy Gun 4 | 1 1 . 2 Energy Cannon . | . . . . Ballistic Gun 9 | 2 3 1 3 Ballistic Cannon 1 | . . . 1 Launcher 4 | . 1 1 2 Special Weapon . | . . . . Impact Weapon 1 | . 1 . . Slashing Weapon 4 | . . . 4 Piercing Weapon . | . . . . Special Melee Weapon . | . . . . Unidentified Prototypes . | . . . . Parts Lost 2 | . 2 . . Power 1 | . 1 . . Propulsion . | . . . . Utility 1 | . 1 . . Weapon . | . . . . Highest Loss Streak 2 | . 2 . . To Critical Strikes . | . . . . Average Slot Usage (%) 99 | . 98 100 100 Engine 13 | . 14 14 12 Treads 28 | . 28 28 28 Device 11 | . 7 14 14 Storage 14 | . 14 14 14 Protection 2 | . 6 . . Energy Gun 2 | . 3 . 2 Ballistic Gun 20 | . 21 27 15 Slashing Weapon 2 | . . . 6 Naked Turns . | . . . . Heaviest Build 32 | 13 29 30 32 Greatest Support 40 | 40 40 40 40 Greatest Overweight (x) 4 | 4 . . . Average Overweight (x) . | . . . . Largest Inventory Capacity 15 | 8 15 15 15 Average Capacity 14 | 7 14 15 15 Most Carried 15 | 6 15 15 15 Average Carried 13 | 2 13 15 14 Final Capacity 15 | 8 15 15 15 Final Carried 15 | 5 15 15 15 Class Distribution -------------------- 54% | Scavenger-Mutant 45% | Mutant Dominant Class ---------------- Scavenger-Mutant | -10/Materials Scavenger-Mutant | -10/Mines Mutant | -10/Subcaves Resources | -11 -10 -10 -10 ----------- Run | Yrd Mat Min Sub Matter Collected 1186 | 318 347 117 404 Remotely . | . . . . Salvage Created 1227 | 128 724 114 261 Parts 88 | 8 51 13 16 Haulers Intercepted 2 | . 2 . . Recyclers Shooed 3 | . 3 . . Parts Field Recycled . | . . . . Retrieved Matter . | . . . . Parts Self-Destructed 13 | . . . 13 Prevented 1 | . . . 1 Kills | -11 -10 -10 -10 ------- Run | Yrd Mat Min Sub Combat Hostiles Destroyed 24 | . 10 6 8 Melee 1 | . . . 1 Guns 13 | . 8 3 2 Cannons 1 | . . . 1 AOE 9 | . 2 3 4 Classes Destroyed 11 | 3 6 . 2 Worker 3 | 1 . 2 . Builder 3 | . 3 . . Tunneler 3 | 2 1 . . Hauler 2 | . 2 . . Recycler 3 | 1 2 . . Operator 1 | . 1 . . Watcher 3 | . 3 . . Swarmer 9 | . 3 6 . Grunt 7 | . 7 . . Sentry 1 | . . . 1 Subdweller 7 | . . . 7 Best Kill Streak 3 | 2 3 3 3 Combat Bots Only 3 | . 3 3 3 Max Kills in Single Turn 2 | 1 2 2 1 Gunslinging 1 | . . 1 . Exploded 2 | . 2 2 1 Melee 1 | . . . 1 Uniques/NPCs Destroyed . | . . . . Combat | -11 -10 -10 -10 -------- Run | Yrd Mat Min Sub Hostile Shots Fired 122 | . 82 11 29 Missed 31 | . 18 2 11 Damage Taken 1179 | . 636 71 472 Core 259 | . 161 10 88 Absorbed by Shields . | . . . . Regen/Repaired (Parts) 192 | . 192 . . Core Remaining (%) 100 | 100 . . . Volleys Fired 148 | 14 96 12 26 Largest 2 | 2 2 2 2 Hottest 75 | 40 70 40 75 Shots Fired 279 | 28 189 21 41 Gun 258 | 28 188 18 24 Cannon 7 | . . . 7 Launcher 14 | . 1 3 10 Special . | . . . . Kinetic 246 | 28 171 18 29 Thermal 17 | . 17 . . Explosive 14 | . 1 3 10 Electromagnetic 2 | . . . 2 Robot Hit Streak 15 | 8 10 8 15 Robot Miss Streak 4 | 3 4 3 1 Penetration Max . | . . . . Secondary Targets 3 | . 2 1 . Max Gunslinging Chain 1 | . 1 1 . Shots Hit Robots 177 | 19 114 12 32 Core Hits 79 | 8 47 8 16 Critical Kills 1 | . 1 . . Critical Parts Destroyed 2 | . 2 . . Critical Strikes 4 | . 4 . . Burn 1 | . 1 . . Destroy 2 | . 2 . . Smash 1 | . 1 . . Melee Attacks 35 | . 3 . 32 Impact 3 | . 3 . . Slashing 32 | . . . 32 Piercing . | . . . . Sneak Attacks 1 | . 1 . . Combat Hostiles . | . . . . Follow-up Attacks . | . . . . Damage Inflicted 2807 | 151 1209 321 1126 Guns 1567 | 151 1002 141 273 Cannons 87 | . . . 87 Explosions 1008 | . 128 180 700 Melee 145 | . 79 . 66 Ramming . | . . . . Kinetic 1546 | 151 915 141 339 Thermal 87 | . 87 . . Explosive 1008 | . 128 180 700 Electromagnetic 21 | . . . 21 Impact 79 | . 79 . . Slashing 66 | . . . 66 Piercing . | . . . . Highest Corruption 5 | . 5 5 5 Average Corruption 4 | . 4 5 5 Corruption Purged . | . . . . Corruption Blocked . | . . . . Effects 105 | . 27 31 47 Message Errors 37 | . 9 7 21 Matter Fused 21 | . 4 9 8 Heat Flow Errors 10 | . 2 3 5 Energy Discharges 14 | . 3 5 6 Parts Fused 1 | . . 1 . Data Loss (minor) 12 | . 5 3 4 Data Loss (major) 5 | . 1 3 1 Misfires 2 | . 1 . 1 Alerts 3 | . 2 . 1 Overload Shots . | . . . . Overflow Damage 16 | . . 16 . Projectiles . | . . . . Explosions 16 | . . 16 . Melee . | . . . . Knockbacks 1 | . . . 1 Impact . | . . . . Kinetic 1 | . . . 1 Secondary . | . . . . Self-Inflicted Damage 2 | . . 2 . Shots 1 | . . 1 . Rammed . | . . . . Targets Rammed . | . . . . Kicked . | . . . . Crushed . | . . . . Highest Temperature 253 | . 225 159 253 Average Temperature 42 | . 27 73 89 Received Heat Transfer 312 | . 240 . 72 Siege Activations . | . . . . Robots Corrupted . | . . . . Combat Hostiles . | . . . . Parts Fried . | . . . . Impact Corruptions . | . . . . Robots Melted . | . . . . Combat Hostiles . | . . . . Parts Melted . | . . . . Heat Transferred 333 | . 333 . . Parts Sabotaged . | . . . . Parts Stolen . | . . . . Parts Stripped . | . . . . Power Chain Reactions . | . . . . Alert | -11 -10 -10 -10 ------- Run | Yrd Mat Min Sub Peak Influence 243 | 20 243 167 . Initial 13 | . 13 3 . Average 54 | 6 62 47 . Maximum Alert Level 1 | . 1 . . Low Security (%) 97 | 100 96 100 . Level 1 2 | . 3 . . Level 2 . | . . . . Level 3 . | . . . . Level 4 . | . . . . Level 5 . | . . . . High Security . | . . . . Max Security . | . . . . Squads Dispatched 3 | . 3 . . Investigation 2 | . 2 . . Extermination . | . . . . Reinforcement 1 | . 1 . . Assault . | . . . . Garrison . | . . . . Intercept . | . . . . Searches Triggered . | . . . . Construction Impeded . | . . . . Haulers Reinforced . | . . . . Active Scanning Responses . | . . . . Cargo Convoy Interrupts . | . . . . Stealth | -11 -10 -10 -10 --------- Run | Yrd Mat Min Sub Distress Signals 1 | . 1 . . Communications Jammed . | . . . . Distress Signals . | . . . . Times Spotted 47 | . 28 6 13 Peak Tracking Total 3 | . 3 3 2 Tactical Retreats 1 | . 1 . . Traps | -11 -10 -10 -10 ------- Run | Yrd Mat Min Sub Traps Triggered 5 | . 4 . 1 Indirectly . | . . . . Trap Hack Attempts . | . . . . Triggered . | . . . . Disarmed . | . . . . Reprogrammed . | . . . . Reused . | . . . . Traps Extracted . | . . . . Installed . | . . . . Triggered . | . . . . Machines | -11 -10 -10 -10 ---------- Run | Yrd Mat Min Sub Machines Disabled 1 | . 1 . . Max in Single Turn 1 | . 1 . . Machines Repaired . | . . . . Machines Dismantled . | . . . . Machines Sabotaged . | . . . . Overloaded Fab Kills . | . . . . Hacking | -11 -10 -10 -10 --------- Run | Yrd Mat Min Sub Machines Accessed 10 | . 9 1 . Terminals 8 | . 7 1 . Fabricators . | . . . . Repair Stations 1 | . 1 . . Recycling Units 1 | . 1 . . Scanalyzers . | . . . . Garrison Access . | . . . . Total Hacks 26 | . 24 2 . Successful 18 | . 17 1 . Failed 8 | . 7 1 . Catastrophic 2 | . 2 . . Database Lockouts . | . . . . Manual 17 | . 15 2 . Terminals 19 | . 17 2 . Fabricators . | . . . . Repair Stations 6 | . 6 . . Recycling Units 1 | . 1 . . Scanalyzers . | . . . . Garrison Access . | . . . . Terminal Hacks 3 | . 3 . . Terminal Index 1 | . 1 . . Recall Investigation 1 | . 1 . . Hauler Manifests 1 | . 1 . . Fabricator Hacks . | . . . . Repair Station Hacks 6 | . 6 . . Scan Component 3 | . 3 . . Repair 3 | . 3 . . Recycling Unit Hacks . | . . . . Scanalyzer . | . . . . Garrison Access Hacks . | . . . . Unauthorized Hacks 9 | . 8 1 . Terminals 9 | . 8 1 . Botnet 8 | . 7 1 . Operators 1 | . 1 . . Fabricators . | . . . . Repair Stations . | . . . . Recycling Units . | . . . . Scanalyzers . | . . . . Garrison Access . | . . . . Data Cores Recovered . | . . . . Used . | . . . . Hacking Detections 8 | . 8 . . Full Trace Events 2 | . 2 . . Feedback Events . | . . . . Feedback Blocked . | . . . . Robot Schematics Acquired . | . . . . Robots Built . | . . . . Authchips . | . . . . Time . | . . . . Total Robot Build Rating . | . . . . Part Schematics Acquired . | . . . . Parts Built . | . . . . Authchips . | . . . . Time . | . . . . Total Part Build Rating . | . . . . Parts Repaired 3 | . 3 . . Time 78 | . 78 . . Parts Recycled . | . . . . Recycled Matter . | . . . . Retrieved Matter . | . . . . Retrieved Components . | . . . . Parts Scanalyzed . | . . . . Part Schematics Acquired . | . . . . Parts Damaged . | . . . . Bothacking | -11 -10 -10 -10 ------------ Run | Yrd Mat Min Sub Used RIF Installer . | . . . . Robots Hacked . | . . . . Non-combat . | . . . . Combat . | . . . . Robot Hacks Applied . | . . . . Relay Couplers Released . | . . . . Fabnet Peak Effective % . | . . . . Robots Rewired . | . . . . Allies Hacked . | . . . . Hacks Repelled . | . . . . Allies | -11 -10 -10 -10 -------- Run | Yrd Mat Min Sub Total Allies 3 | . . 3 . Largest Group 3 | . . 3 3 Highest-Rated Group 40 | . . 40 40 Highest-Rated Ally 16 | . . 16 16 Total Orders . | . . . . Ally Attacks 47 | . . . 47 Total Damage 468 | . . . 468 Kills 4 | . . . 4 Allies Corrupted . | . . . . Allies Melted . | . . . . Intel | -11 -10 -10 -10 ------- Run | Yrd Mat Min Sub Robot Analysis Total . | . . . . Derelict Logs Recovered 3 | . . 2 1 Drone Launches . | . . . . Drone Recoveries . | . . . . Exploration | -11 -10 -10 -10 ------------- Run | Yrd Mat Min Sub Turns Passed 5303 | 184 1941 1198 1980 Spaces Moved 2897 | 74 970 727 1126 Core 20 | 20 . . . Treads 2877 | 54 970 727 1126 Legs . | . . . . Wheels . | . . . . Hover . | . . . . Flight . | . . . . Fastest Speed 50 | 50 160 160 160 Average Speed 160 | 174 160 160 160 Slowest Speed 250 | 250 160 160 160 Overloaded Moves . | . . . . Propulsion Burnouts . | . . . . Robots Hopped . | . . . . Cave-ins Triggered . | . . . . Exploration Rate (%) 63 | 5 99 98 53 Regions Visited 3 Branch Regions 2 Pre-discovered Areas 3 | . . 1 2 Known Exits Taken . | . . . . Unknown Exits Taken 3 | 1 1 1 . Scrap Searched 12 | . . 2 10 Spaces Dug 20 | . 2 . 18 Terrain Destroyed 122 | . 10 35 77 Melee 8 | . 2 . 6 Projectile . | . . . . AOE 114 | . 8 35 71 Terrain Rammed . | . . . . Walls Destroyed . | . . . . Machines Disabled . | . . . . Actions | -11 -10 -10 -10 --------- Run | Yrd Mat Min Sub Total 3274 | 102 1202 740 1230 Wait 96 | . 78 . 18 Move 2894 | 73 969 726 1126 Hop . | . . . . Pick Up 36 | 5 25 . 6 Fast Attach 9 | 7 2 . . Attach 2 | . 2 . . Detach 1 | . 1 . . Swap 31 | 2 11 2 16 Drop 22 | 1 15 . 6 Fire 148 | 14 96 12 26 Melee 35 | . 3 . 32 Ram . | . . . . Kick . | . . . . Crush . | . . . . Escape Stasis . | . . . . Rewire . | . . . . Trap . | . . . . Miscellaneous . | . . . . Route ------- -11/Scrapyard -10/Materials (discovered 5 exits: [*Mat x3] / *Min / [Sub]) -10/Mines (discovered 3 exits: [*Mat x2] / [*Sub]) -10/Subcaves (discovered 1 exit: [*Mat]) History --------- Turn | Location | Event 24 | -11/Scrapyard | Discovered new exit (range 15) 185 | -11/Scrapyard | Entered Materials 280 | -10/Materials | Discovered new exit (range 7) 317 | -10/Materials | Build established: Mutant 421 | -10/Materials | Discovered new exit (range 15) 629 | -10/Materials | Discovered new exit (range 16) 980 | -10/Materials | Repaired Lgt. Treads 1007 | -10/Materials | Repaired Lgt. Treads 1034 | -10/Materials | Repaired Lgt. Assault Rifle 1052 | -10/Materials | Core integrity fell below 50% 1449 | -10/Materials | Build established: Scavenger-Mutant 1660 | -10/Materials | Discovered new exit (range 9) 1982 | -10/Materials | Discovered new exit (range 10) 2126 | -10/Materials | Entered Mines 2201 | -10/Mines | Discovered new exit (range 10) 2287 | -10/Mines | Assisted by bots powering up and referring to "LRC-V3" 2299 | -10/Mines | YI-UF0 nonchalantly dropped a Grenade Launcher on the ground 2327 | -10/Mines | Discovered new exit (range 16) 2715 | -10/Mines | Learned Materials terminal intel 3028 | -10/Mines | Learned location of Mines (-8) 3300 | -10/Mines | Discovered new exit (range 14) 3324 | -10/Mines | Entered Subcaves 3324 | -10/Subcaves | Accompanied by 3 allies 3759 | -10/Subcaves | Learned location of Zion (-6) 3760 | -10/Subcaves | Met a Zionite searching for "candidates" 3820 | -10/Subcaves | Shifting Twisted Machinery released Sub. Power Source 3823 | -10/Subcaves | Shifting Twisted Machinery released Battle Cannon 3894 | -10/Subcaves | Disturbed a concealed Subdweller 3895 | -10/Subcaves | Disturbed a concealed Subdweller 4187 | -10/Subcaves | Shifting Twisted Machinery released Mak. Light Armor Plating 4211 | -10/Subcaves | Shifting Twisted Machinery released Sub. Optics 4337 | -10/Subcaves | A swath of the cavern ceiling suddenly collapsed 4349 | -10/Subcaves | Build established: Mutant 4401 | -10/Subcaves | Core integrity fell below 20% 4964 | -10/Subcaves | A swath of the cavern ceiling suddenly collapsed 5245 | -10/Subcaves | Discovered new exit (range 15) 5304 | -10/Subcaves | Destroyed by 6E-72M(R) with Subdweller Beam Cannon Last Messages --------------- collapses. 04970_ System corrupted: Heat flow error (+155). 04995_ System corrupted: Component data lost. 05053_ System corrupted: Heat flow error (+291). 05078_ 6T-NWR(R) destroyed. 05080_ IP-01I(R) destroyed. 05082_ The unstable cave ceiling collapses. 05096_ ZXJIU3 VH>85 05232_ System corrupted: Energy discharge (-52). 05245_ EXIT=FOUND 05259_ EH7B:NUH>9MD I9TL3EXUJ 05296_ System corrupted: Matter fused (-9). 05300_ UH-KLT(R) destroyed. Map ----- +----------------------------------------------------+ | ???????????????????????????????????????????? | | ???????????????????????????????????????????? | | ???????????????????????????????????????????? | | ???????????????????????????????????????????? | | ???????????????????????????????????????????? | | ???????????????????????????????????????????? | | ???????????????????????????????????????????? | | ???????????????????????????????????????????? | | ???????????????????????????????????????????? | | ???????????????????????????????????????????? | | ????????????????? "???????????????????? | | ????????????????? ??????????????????# | | ???????????????## R # ""??????????????## | | ???????????????## ###"?????????????## | | ???????????????## " ###?????????????## | | ???????????????# %& ##?????????????## | | ?????????????##### & ###??## #???????## | | ?????????????#### ########????????# | | ?????????????## ?#####"##????????# | | ?????????????## ?#####""##?????#### | | ?????????????### ##### "##????##### | | ????????????#### ##### ###????### | | ????????????#### ### ######### | | ????????????## ######## | | ????????????### ### | | ???????????? ## @ < | | ???????????? ## | | ???????????? # ## #### # | | ??????????? ## ########### ## | | ????????## #< # ## ########### |[ | | ????????## # #### ##?????## # | | ????????## ## ####### ###?????## | | ????????## #